{"text_format":"1","workbook":"xlsx","n_sheets":21,"sheets":["KLINIKK","AVDELING","SEKSJON","LOKALISERING","SMS Oppsett","Metavision","Andre endringer","Arbeidsgruppe","Systemoppsett","Feltoppsett","Senger Kliniske systemer","MV GPO","Mappestruktur_info","02_Rename EnhetsMapper","03_Ny-EnhetsMappe","04_Flytte-EnhetsMappe","11_migreringliste_MAL","AD og Outlook","Verdier","Hjelpetabell","i"],"not_rendered":{"charts":0,"images":21,"macros":1,"external_links":0,"defined_names":6,"comments":1,"pivot_tables":0},"unopened":[],"bounds":{"document_bytes":16777216,"sheet_cells":100000,"rows_first":2000,"rows_last":500,"rows_between":2000,"halvings":0,"cell_chars":16384,"cell_head_chars":4096},"cells_cut":0,"cells_raw":0,"read":"whole","date_system":"1900"}

{"sheet":"KLINIKK","index":0,"n_rows":19,"n_cols":2,"rows_kept":19,"cut":false,"hidden":true,"merged":[[2,0,2,1],[1,0,1,1],[0,0,0,1]]}
["KLINIKK I DIPS"]
["Ved nyopprettelse må alle felter merket med * fylles ut."]
[]
[]
["Bestillingen gjelder:","Ny"]
[]
["Generell informasjon "]
["Klinikkens langtnavn *"]
["Klinikkens kortnavn *"]
["Standardnummer *"]
["RESH-id *"]
["Næring (for bruk i Offentlig rapportering)","Velg i nedtrekksmenyen"]
["Adresse (fylles ut hvis avdelingen skal ha en adresse i DIPS)"]
["Postnr."]
["Epostadresse"]
["Leder for klinikken - Fornavn (fylles ut hvis avdelingen skal ha en leder i DIPS)"]
["Leder for klinikken - Etternavn (fylles ut hvis avdelingen skal ha en leder i DIPS)"]
["Startdato (\"gyldig fra\")"]
["Stoppdato (\"gyldig til\") * (Kun ved inaktivering)"]

{"sheet":"AVDELING","index":1,"n_rows":57,"n_cols":4,"rows_kept":57,"cut":false,"hidden":true,"merged":[[0,0,0,1],[2,0,2,1]]}
["AVDELING I DIPS"]
["Ved nyopprettelse må alle felter merket med * fylles ut. "]
["Ved endring og deaktivering må felter som er aktuelle for endringen fylles ut."]
[]
["Bestillingen gjelder:","Ny",null,"Gjelder bestillingen flere avdelinger?"]
[]
["Generell informasjon"]
["Avdelingens langtnavn *"]
["Avdelingens kortnavn *"]
["Avdelingstype *"]
["Avd.nr. *"]
["Standard avd.nr *"]
["Sykehus *"]
["Klinikk *"]
["Telefonnummer *"]
["Telefax"]
["Telefontid"]
["E-post adresse"]
["Webadresse"]
["Adresse"]
["Postnr."]
["Normert antall senger"]
["Antall senger i bruk"]
["Ansvarsområde"]
["RESH-id *"]
["Næring (for bruk i Offentlig rapportering)*"]
["Startdato (\"gyldig fra\")"]
["Stoppdato (\"gyldig til\") * (Kun ved inaktivering av enhet)"]
["Avdelingen skal registreres som *:"]
[null,null,0]
[null,null,0]
[null,null,0]
[null,null,0]
[null,null,0]
[null,null,0]
[null,null,0]
["Knytting avdeling/post/lokalisering/seksjon",null,0]
["Hvilke poster skal knyttes til avdelingen (Bruk kortkode og semikolon)","Bruk kortkode og semikolon (MEDS1;MEDS2)"]
["Hvilke lokaliseringer skal knyttes til avdelingen (Bruk kortkode og semikolon)","Bruk kortkode og semikolon (MEDP1;MEDP2)"]
[]
["Dette må vurderes av HF"]
["Rydding av oppmøtelister og ventelister"]
["Fraser knyttet til avdeling"]
["Analysepakker "]
["Reseptmaler"]
["Felleskodeverk "]
["Journalgrupper/maler"]
["Timedefinisjoner"]
["Kontantkasser"]
["Brevmaler"]
[]
["INTERNT SP"]
["oppdatere matrisen"]
["Avhengigheter mot integrasjoner: Se egne rutiner"]
["Eksterne henvisninger/AR-register/ Msg. Broker/Biztalk"]
["Nye IdM roller"]
["Koblingsark"]

{"sheet":"SEKSJON","index":2,"n_rows":23,"n_cols":4,"rows_kept":23,"cut":false,"hidden":true,"merged":[[0,0,0,1],[2,0,2,1],[1,0,1,1]]}
["SEKSJON I DIPS","Kommentar til Charlotte"]
["Ved nyopprettelse må alle felter fylles ut."]
["Ved endring og deaktivering må felter som er aktuelle for endringen fylles ut."]
[]
["Bestillingen gjelder:","Ny",null,"Gjelder bestillingen flere seksjoner?"]
[]
["Generell informasjon "]
["Sykehus*"]
["Seksjonens langtnavn*"]
["Seksjonens kortnavn*"]
["Hvilken avdeling skal seksjonen knyttes til*"]
["Fagområde"]
["Telefon"]
["Telefontid"]
["Telefax"]
["E-postadresse"]
["Adresse"]
["Postnr."]
["Standard seksjonsnummer*"]
["Ansvarsområde"]
["RESH-id*"]
["Startdato (\"gyldig fra\")"]
["Stoppdato (\"gyldig til\") *"]

{"sheet":"LOKALISERING","index":3,"n_rows":69,"n_cols":4,"rows_kept":69,"cut":false,"hidden":true,"merged":[[49,0,49,1],[4,3,5,3],[0,0,0,1],[2,0,2,1]]}
[" LOKALISERING/POLIKLINIKK I DIPS","Kommentar til Charlotte"]
["Ved nyopprettelse må alle felter merket * fylles ut. "]
["Ved endring og deaktivering må felter som er aktuelle for endringen fylles ut."]
[]
["Bestillingen gjelder:","Ny",null,"Gjelder bestillingen flere lokaliseringer/poliklinikker?"]
[]
["Generell informasjon"]
["Lokaliseringens langtnavn *"]
["Lokaliseringens kortnavn *"]
["Sykehus *"]
["Standard lokaliseringsnummer *"]
["Omsorgsnivå *"]
["Arbeidssted (Behandlingssted)*"]
["Labsted"]
["Adresse"]
["Postnr."]
["Telefonnummer*"]
["Telefontid"]
["Telefax"]
["E-post adresse"]
["Web adresse"]
["Intern Merknad"]
["Adkomstbeskrive"]
["Merknad"]
["Kan rekvirere LAB*",null,0]
["Lokaliseringstype *:"]
[null,null,0]
[null,null,0]
[null,null,0]
[null,null,0]
[null,null,0]
["Skal lokaliseringen være arbeidssted; oppgi type næring(er) og tilhørende org.nummer"]
["Næring","Organisasjonsnummer"]
[]
[]
[]
[]
[]
[]
[]
[]
[]
[]
["Hvilken avdeling skal lokaliseringen knyttes til (bruk semikolon)","(eks. MED;ORT)"]
["RESH-id*"]
["Startdato (\"gyldig fra\") *"]
["Skal lokaliseringen untas fra SMS-varsling? (default oppsett er Ja - kun unntak meldes inn)"]
["Stoppdato (\"gyldig til\") * (Kun ved inaktivering av enhet)"]
[]
["RPSM/Imatis - Dersom lokalisering skal benytte Imastis må begge spørsmål under besvares",null,0]
["OBS! Senger Imatis legges inn i fane \"Senger Kliniske systemer\"",null,0]
["Skal pasienter kunne benytte selvinnsjekk?",null,0]
["Hvilken ventesone skal pasientene møte i?"]
[]
["Dette må vurderes av HF"]
["Rydding av oppmøtelister og ventelister"]
["Maler som kan inneholde lokaliseringsnavn "]
["Fraser knyttet til lokalisering"]
["Skal lokaliseringen kobles til andre/flere avdelinger?"]
["SMS/UMS -varsling"]
["Kodeverk "]
["Ressurser"]
["Terminalregister/kontaktkasse"]
["Analysepakker"]
[]
["INTERNT SP"]
["Nye IdM roller?"]
["Koblingsark"]
["Avhengigheter mot integrasjoner: Se egne rutiner"]

{"sheet":"SMS Oppsett","index":4,"n_rows":4,"n_cols":11,"rows_kept":4,"cut":false,"hidden":true,"merged":[[0,0,0,11],[1,0,1,19],[2,0,2,2],[2,3,2,10]]}
["Endring, legges til i eksisterende INI-fil, med øvrig oppsett: Helst fyll ut hvilken INI-fil/klient det gjelder, kortkode for: avdeling, seksjon og lokalisering."]
["Ny INI fil: Fyll ut kortkode for: avdeling, seksjon, lokalisering. Maks antall dager før timen det skal sendes SMS, Ukedager det skal sendes SMS (man-søn), Tidspunkter det skal sendes ut SMS (Klokkeslett), Skriv innholdet i SMS ‘en. \nEr det noen konsultasjonstyper det ikke skal sendes ut SMS for (Hvilke)? Skal det sendes SMS til barn under 16 år(Ja/Nei)?"]
["Kontaktperson HF SMS-ansvarlig:"]
["Ny/Endring","INI fil","Avdeling","Seksjon","Lokalisering","Maks antall dager før time","Sendedager ","Sendetidpsunkt","SMS tekst til pasienten","Sperret konsultasjonstype","Barn under 16 år"]

{"sheet":"Metavision","index":5,"n_rows":3,"n_cols":16,"rows_kept":3,"cut":false,"hidden":true,"merged":[[0,0,0,11]]}
["For bistand til utfylling, trykk på ikonet \"Info til utfylling MV\"  \nVed opprettelse av ny enhet i Metavision må dette skjema fylles ut, samt at oppdatert tilgangsmatrise for Metavision må legges ved bestillingen"]
["Prodsettes i MV","Resh ID DIPS","Postkortnavn DIPS","Postlangtnavn DIPS ","Default oppsett ","(sengenavn max 10 tegn inkl. mellomrom)\nSengenavn","Sengeid i DIPS (KFA oppdater skjema)","Sengetype i DIPS","Høsting sentral","Digiboks IP-adresse","Nødprint","PDF-rapport","LLS","CCOW Exclude","Tilgangsmatrise oppdatert av HF","Kommentar HF"]
["Dato endringen skal tas i bruk MV",12345,"ABC post 1","Sengepost 1AB","Sengepost","101-2",null,"Vanlig","Ja/Nei",null,"Medisinsk intensiv Ullevål, bygg 3, 1 etg., romnr. XXXXXX","Ukeskurve, Intensivrapport","Ja/Nei","Ja/Nei","Ja/Nei - hvis nei - hvorfor?","Poliklinikk, ingen senger"]

{"sheet":"Andre endringer","index":6,"n_rows":12,"n_cols":5,"rows_kept":12,"cut":false,"hidden":true,"merged":[[1,0,3,8],[10,0,10,1],[10,2,10,3],[10,4,10,5],[8,0,8,1],[8,2,8,3],[8,4,8,5],[9,0,9,1],[9,2,9,3],[9,4,9,5],[5,4,5,5],[6,0,6,1],[6,2,6,3],[6,4,6,5],[7,0,7,1],[7,2,7,3],[7,4,7,5],[19,1,19,8],[0,0,0,8],[11,1,11,8],[12,1,12,8],[13,1,13,8],[14,1,14,8],[15,1,15,8],[16,1,16,8],[17,1,17,8],[18,1,18,8],[4,0,4,1],[4,2,4,3],[4,4,4,5],[5,0,5,1],[5,2,5,3],[31,1,31,8],[20,1,20,8],[21,1,21,8],[22,1,22,8],[23,1,23,8],[24,1,24,8],[25,1,25,8],[26,1,26,8],[27,1,27,8],[28,1,28,8],[29,1,29,8],[30,1,30,8],[38,1,38,8],[39,1,39,8],[32,1,32,8],[33,1,33,8],[34,1,34,8],[35,1,35,8],[36,1,36,8],[37,1,37,8]]}
["Endring i andre systemer/andre endringer"]
["BAT: Ved omorganisering der alle ansatte skal flyttes fra et ansvar til et annet og skal videreføre oppgaver og tilganger bestilt via BAT kan skjema under benyttes. \nDersom det er kun enkeltpersoner som skal videreføre tilganger, må disse bestilles på nytt via BAT etter flytting til aktuelt ansvar. \nMÅ bestilles minst 1 uke FØR ansatte flyttes"]
[]
[]
["Ansatte flyttes fra ansvarsnr /ksted:",null,"Ansatte flyttes til ansvarsnr/ksted:",null,"Dato ansatte flyttes:"]
[]
[]
[]
[]
[]
[]
["System","Endring - beskriv hva som skal gjøres"]

{"sheet":"Arbeidsgruppe","index":7,"n_rows":3,"n_cols":7,"rows_kept":3,"cut":false,"hidden":true,"merged":[[0,0,0,6]]}
["Arbeidsgrupper i DIPS"]
["NY (N) / Endring (E) / Inaktivering (I)","Gammelt navn på arbeidsgruppe","Navn på arbeidsgruppe","Sykehus","Arbeidsgruppetype","Knytt til avdeling","Ved inaktivering av arbeidsgruppe skal oppgaver overføres til arbeidsgruppe:"]
["I (eksempel)","kun ved navneendring",null,"Må fylles ut","Alle / arbeidsgruppejournal / team",null,"Ort Kontor"]

{"sheet":"Systemoppsett","index":8,"n_rows":5,"n_cols":13,"rows_kept":5,"cut":false,"hidden":true,"merged":[[0,0,0,12],[1,0,1,12],[2,0,2,12],[3,0,3,12]]}
["Systemoppsett"]
["Kjør rapport D-10080 - Systemoppsett med verdier"]
["Ved nytt oppsett, fylles skjema inn - endring og deaktivering kan rapport legges inn i tabell under"]
["Grå kolonner trenger ikke fylles ut ved nytt systemoppsett"]
["NY (N) / Endring (E) / Inaktivering (I)","Parameterid","Parameternavn","Klassenavn","Feltnavn","Parametertype","Parameterverdiid","Sykehusnavn","Avdeling","Parameterverdi","Seksjon","Post","Lokalisering"]

{"sheet":"Feltoppsett","index":9,"n_rows":5,"n_cols":14,"rows_kept":5,"cut":false,"hidden":true,"merged":[[0,0,0,13],[1,0,1,13],[2,0,2,13],[3,0,3,13]]}
["Feltoppsett"]
["Kjør rapport S-1003363 - Feltoppsett med verdier (OBS! Kun tilgjengelig i DIPS OUS pr. 22/06/20 - SP jobber med å få denne på plass hos samtlige HF)"]
["Ved nyt oppsett, fylles skjema inn - endring og deaktivering kan dages oppsett kopieres rett inn i tabellen fra DIPS-rapporten"]
["Grå kolonner trenger ikke fylles ut ved nytt feltoppsett"]
["NY (N) / Endring (E) / Inaktivering (I)","Sykehus","Avdkortnavn","Avdnavn","Sekkortnavn","Seknavn","Postkortnavn","Postnavn","Feltoppsettnavn","Klassenavn","Feltnavn","Beskrivelse","Default verdi","Utfyllingskrav"]

{"sheet":"Senger Kliniske systemer","index":10,"n_rows":4,"n_cols":13,"rows_kept":4,"cut":false,"hidden":false,"merged":[[1,0,1,11],[0,0,0,9],[0,10,0,12]]}
["Senger Kliniske Systemer"]
["For bistand til utfylling, trykk på wordikonet til høyre\nVed opprettelse av ny enhet i Metavision må dette skjema fylles ut, samt at oppdatert tilgangsmatrise for Metavision må legges ved bestillingen\nKolonner for RPSM og MV fylles ut kun dersom aktuelt for bestilling\nFor nye Operasjonsposter/spesialposter i MV som skal ha GPO - må skisse legges ved bestilling \nTilganger til nye poster  og oppsett av datahøsting fra nye senger i Metavision vil være på plass innen 2 virkedager etter utført staging"]
["Prodsettes i MV","Prodsettes i DIPS","Postens RESH-ID","Postkortnavn DIPS","Postlangtnavn DIPS ","Posttype","Ny seng/sette ut av bruk","(sengenavn max 10 tegn inkl. mellomrom)\nSengenavn","Sengetype i DIPS","MV\nDefault oppsett ","MV\nSeng ha datahøsting til Metavision?","MV\nHøsting sentral","Kommentar HF"]
["Dato endringen skal tas i bruk MV","Dato endringen skal tas i bruk DIPS",null,"ABC post 1","Sengepost 1AB","Vanlig","Ny / ut av bruk","101-1","Vanlig","Sengepost","Ja/Nei","Ja/Nei","Poliklinikk, ingen senger"]

{"sheet":"MV GPO","index":11,"n_rows":41,"n_cols":1,"rows_kept":41,"cut":false,"hidden":true,"merged":[[5,0,5,1],[1,0,4,10]]}
[]
["GPO = Grafisk Pasient Oversikt\nDette er en visning over hvilke senger som er tilgjengelig på posten.\nBenyttes for å flytte/dra pasienter i korrekt seng på operasjons- eller enkelte spesialposter. \nNy/Oppdatert GPO legges inn i denne fanen og bilder under fjernes"]
[]
[]
[]
["GPO standard utseende"]
[]
[]
[]
[]
[]
[]
[]
[]
[]
[]
[]
[]
[]
[]
[]
[]
[]
[]
[]
[]
[]
[]
[]
[]
[]
[]
[]
[]
[]
[]
[]
[]
[]
[]
["Eksempel på utfylt GPO"]

{"sheet":"Mappestruktur_info","index":12,"n_rows":1,"n_cols":1,"rows_kept":1,"cut":false,"hidden":true,"merged":[[0,0,0,9]]}
["Mappestruktur/filstruktur informasjon"]

{"sheet":"02_Rename EnhetsMapper","index":13,"n_rows":2,"n_cols":3,"rows_kept":2,"cut":false,"hidden":true,"merged":[]}
["Path","NyttNavn","Kommentar"]
["\\\\sikt\\data\\VVHF\\sds\\Felles\\Psykisk helse og rus\\PHR Psykiatrisk avdeling Blakstad\\BLAK Akuttseksjon AB","BLAK Akuttseksjon A","Eksempel - slett denne linjen ved utfylling"]

{"sheet":"03_Ny-EnhetsMappe","index":14,"n_rows":17,"n_cols":7,"rows_kept":17,"cut":false,"hidden":true,"merged":[]}
["HF","TilMor","TilEnhetNavn","NyEnhetsAnsvarsNr","PagaGrEnhet","LederMappenMedlemmer","Kommentar"]
["VVHF","\\\\sikt\\data\\VVHF\\sds\\Felles\\Psykisk helse og rus\\PHR Psykiatrisk avdeling Blakstad","Seksjon_B",610032,{"$f":"A2&\"-\"&D2","v":"VVHF-610032"},"Brukernavn1,Brukernavn2","Eksempel - slett denne linjen ved utfylling"]
[null,null,null,null,{"$f":"A3&\"-\"&D3","v":"-"}]
[null,null,null,null,"-"]
[null,null,null,null,"-"]
[null,null,null,null,"-"]
[null,null,null,null,"-"]
[null,null,null,null,"-"]
[null,null,null,null,"-"]
[null,null,null,null,"-"]
[null,null,null,null,"-"]
[null,null,null,null,"-"]
[null,null,null,null,"-"]
[null,null,null,null,"-"]
[null,null,null,null,"-"]
[null,null,null,null,"-"]
[null,null,null,null,"-"]

{"sheet":"04_Flytte-EnhetsMappe","index":15,"n_rows":2,"n_cols":9,"rows_kept":2,"cut":false,"hidden":true,"merged":[]}
["HF","Fra","TilMor","TilEnhetNavn","EnhetsAnsvarsNr","NyMorAnsvarsNr","PagaGrEnhet","PagaGrNyMor","Kommentar"]
["VVHF","\\\\sikt\\data\\VVHF\\sds\\Felles\\Psykisk helse og rus\\PHR Psykiatrisk avdeling Lier\\LIER Akuttseksjon I","\\\\sikt\\data\\VVHF\\sds\\Felles\\Psykisk helse og rus\\PHR Psykiatrisk avdeling Blakstad","AkuttSeksjon_B",610032,610,{"$f":"$A2&\"-\"&E2","v":"VVHF-610032"},{"$f":"$A2&\"-\"&F2","v":"VVHF-610"},"Eksempel - slett denne linjen"]

{"sheet":"11_migreringliste_MAL","index":16,"n_rows":44,"n_cols":4,"rows_kept":44,"cut":false,"hidden":true,"merged":[]}
["Fra","TilMor","Navn","Til"]
["\\\\sikt\\data\\VVHF\\sds\\Felles\\Psykisk helse og rus\\PHR Psykiatrisk avdeling Blakstad\\Adm. Kontor","\\\\sikt\\data\\VVHF\\sds\\Felles\\Psykisk helse og rus\\PHR Psykiatrisk avdeling Blakstad\\Stabsseksjon\\Felles","Admkontor\\Arkiv_BLAK",{"$f":"B2&\"\\\"&C2","v":"\\\\sikt\\data\\VVHF\\sds\\Felles\\Psykisk helse og rus\\PHR Psykiatrisk avdeling Blakstad\\Stabsseksjon\\Felles\\Admkontor\\Arkiv_BLAK"}]
[null,null,null,{"$f":"B3&\"\\\"&C3","v":"\\"}]
[null,null,null,"\\"]
[null,null,null,"\\"]
[null,null,null,"\\"]
[null,null,null,"\\"]
[null,null,null,"\\"]
[null,null,null,"\\"]
[null,null,null,"\\"]
[null,null,null,"\\"]
[null,null,null,"\\"]
[null,null,null,"\\"]
[null,null,null,"\\"]
[null,null,null,"\\"]
[null,null,null,"\\"]
[null,null,null,"\\"]
[null,null,null,"\\"]
[null,null,null,"\\"]
[null,null,null,"\\"]
[null,null,null,"\\"]
[null,null,null,"\\"]
[null,null,null,"\\"]
[null,null,null,"\\"]
[null,null,null,"\\"]
[null,null,null,"\\"]
[null,null,null,"\\"]
[null,null,null,"\\"]
[null,null,null,"\\"]
[null,null,null,"\\"]
[null,null,null,"\\"]
[null,null,null,"\\"]
[null,null,null,"\\"]
[null,null,null,"\\"]
[null,null,null,"\\"]
[null,null,null,"\\"]
[null,null,null,"\\"]
[null,null,null,"\\"]
[null,null,null,"\\"]
[null,null,null,"\\"]
[null,null,null,"\\"]
[null,null,null,"\\"]
[null,null,null,"\\"]
[null,null,null,"\\"]

{"sheet":"AD og Outlook","index":17,"n_rows":19,"n_cols":2,"rows_kept":19,"cut":false,"hidden":true,"merged":[[2,0,2,1],[18,0,18,1]]}
[]
[]
[" Outlook"]
[]
["Har enheten møterom i Outlook med begrenset booking-tilgang?"]
[null,"Hvis ja, list møterommene opp nedenfor."]
[]
[]
[]
["Møterom med begrenset booking-tilgang"]
[]
["Navn:","Kommentar:"]
[]
[]
[]
[]
[]
[]
["AD"]

{"sheet":"Verdier","index":18,"n_rows":60,"n_cols":2,"rows_kept":60,"cut":false,"hidden":true,"merged":[]}
["Endringstype","Dette arket inneholder verdier som brukes i arkets valgbokser - må ikke endres"]
["Ny"]
["Endring"]
["Inaktivering"]
[]
[]
[]
["Lokalisering"]
["Omsorgsnivå:"]
["Poliklinisk omsorg"]
["Vanlig innleggelse"]
[]
[]
[]
["Avdelingstype"]
["Fysioterapiavdeling"]
["Ikke klinisk"]
["Laboratorium"]
["Psykiatrisk klinikk"]
["Røntgenavdeling"]
["Somatisk klinisk"]
[]
[]
["Type sengepost"]
["Barselpost"]
["Cardiologisk intensivpost"]
["Dialysepost"]
["Intensivpost"]
["Prematurpost"]
["Teknisk post"]
["Vanlig sengepost"]
["Hjemmesykehus"]
[]
["Avdelingstype"]
["Innleggelses avd"]
["Har poliklinikk"]
["Venteliste avd"]
["Ventelisterapport"]
["Parallelle bellegg"]
["ISF-refusjon"]
["NPR-rapport"]
[]
["Næring"]
["Somatikk"]
["Vokenpsykiatri"]
["Barneogungdomsspykiatri"]
["Rusomsorg"]
["Laboratorium"]
["Radiologi"]
["Habilitering"]
["Fysioterapi"]
[]
["Rekvirenttype"]
["Psykisk helsevern"]
["Somatisk spesialisthelsetjeneste"]
["Tverrfaglig spesialisert rusbehandling"]
[]
["Ja"]
["Nei"]
[" "]

{"sheet":"Hjelpetabell","index":19,"n_rows":31,"n_cols":14,"rows_kept":31,"cut":false,"hidden":true,"merged":[]}
["Post Kortnavn",null,null,null,null,null,"Type sengepost",null,null,null,"RESH-ID"]
[1,{"$f":"#REF!","v":{"$error":"#REF!"}},{"$f":"#REF!","v":{"$error":"#REF!"}},1,null,1,{"$f":"#REF!","v":{"$error":"#REF!"}},{"$f":"C2","v":{"$error":"#REF!"}},1,null,{"$f":"F2","v":1},{"$f":"#REF!","v":{"$error":"#REF!"}},{"$f":"C2","v":{"$error":"#REF!"}},1]
[{"$f":"A2+C2","v":{"$error":"#REF!"}},null,null,2,null,{"$f":"A3","v":{"$error":"#REF!"}},null,null,2,null,{"$f":"A3","v":{"$error":"#REF!"}},null,null,2]
[null,null,null,3,null,null,null,null,3,null,null,null,null,3]
[null,null,null,4,null,null,null,null,4,null,null,null,null,4]
[null,null,null,5,null,null,null,null,5,null,null,null,null,5]
[null,null,null,6,null,null,null,null,6,null,null,null,null,6]
[null,null,null,7,null,null,null,null,7,null,null,null,null,7]
[null,null,null,8,null,null,null,null,8,null,null,null,null,8]
[null,null,null,9,null,null,null,null,9,null,null,null,null,9]
[null,null,null,10,null,null,null,null,10,null,null,null,null,10]
[null,null,null,11,null,null,null,null,11,null,null,null,null,11]
[null,null,null,12,null,null,null,null,12,null,null,null,null,12]
[null,null,null,13,null,null,null,null,13,null,null,null,null,13]
[null,null,null,14,null,null,null,null,14,null,null,null,null,14]
[null,null,null,15,null,null,null,null,15,null,null,null,null,15]
[null,null,null,16,null,null,null,null,16,null,null,null,null,16]
[null,null,null,17,null,null,null,null,17,null,null,null,null,17]
[null,null,null,18,null,null,null,null,18,null,null,null,null,18]
[null,null,null,19,null,null,null,null,19,null,null,null,null,19]
[null,null,null,20,null,null,null,null,20,null,null,null,null,20]
[null,null,null,21,null,null,null,null,21,null,null,null,null,21]
[null,null,null,22,null,null,null,null,22,null,null,null,null,22]
[null,null,null,23,null,null,null,null,23,null,null,null,null,23]
[null,null,null,24,null,null,null,null,24,null,null,null,null,24]
[null,null,null,25,null,null,null,null,25,null,null,null,null,25]
[null,null,null,26,null,null,null,null,26,null,null,null,null,26]
[null,null,null,27,null,null,null,null,27,null,null,null,null,27]
[null,null,null,28,null,null,null,null,28,null,null,null,null,28]
[null,null,null,29,null,null,null,null,29,null,null,null,null,29]
[null,null,null,30,null,null,null,null,30,null,null,null,null,30]

{"sheet":"i","index":20,"n_rows":49,"n_cols":17,"rows_kept":49,"cut":false,"hidden":true,"merged":[]}
["Vedlikehold av konto og organisasjonsenhet i Personalportalen"]
[]
["Foretak","Her velges foretak fra nedtrekksmeny"]
[]
["Navn på melder"]
["Telefon melder"]
["Dato"]
[]
["Kontodimensjon",null,"Sykehuset Telmark ","Vestre Viken","Sykehuset i Vestfold","Psykiatrien i Vestfold","Sykehuspartner","Sørlandet sykehus",null,"RHF (Helse Sør)",null,"Sykehusapotekene","Velg i listen","Sunaas","Aker","Sykehuset Østfold HF","Sykehuset Innlandet HF"]
[null,null,"1. Art","1. Konto","1. Konto","1. Konto","1. Konto","1. Konto",null,"1. Konto",null,"1.Konto","Dimensjon1","1.ART","1. Art","1. Art","1. Konto"]
["Dimensjon","må være en nedtrekksmeny som endres ettersom hvilket foretak som er valgt over","2. Avdeling","2. Ansvar","2. Ansvar","2. Ansvar","2. Ansvar","2. Ansvar",null,"2. Avdeling",null,"2.Apotek / avd","Dimensjon2","2.KSTED","2. Kostnadssted","2. Ansvar","2. Ansv."]
[null,null,"3. Prosjekt","3. Prosjekt","3. Prosjekt","3. Prosjekt",null,"3. Funksjon",null,"3. Prosjekt",null,"3.Prosjekt","Dimensjon3","3.KOSTRA","3. Prosjekt","3. Prosjekt","3. Prosj."]
[null,null,null,null,"4. Aktivitet","4. Aktivitet",null,"4. Prosjekt",null,null,null,null,null,"4.PROSJEKT",null,null,"4. Spesif"]
[null,null,null,null,"5. Bal. Spes.","5. Bal. Spes.",null,"5. FDVU"]
[]
[]
["Ny/endring","Ny"]
[null,"Endre betegnelse"]
[null,"Sperre for bruk"]
[]
["Verdi","Oppgi verdi avhengig av kontodimensjon"]
["Betegnelse","Tilhørende navn"]
[]
[]
["Organisasjonsenhet"]
[]
["Når ansvars-/kostnadssted opprettes eller sperres, må det vurderes om det også skal gjøres tilsvarende endringer i organisasjonsenheter"]
[]
["Organisasjonsenhet","Nummer på avdeling/ansvar"]
["Betegnelse","Navn på avdeling"]
["Ny/endring","Ny"]
[null,"Endre betegnelse"]
[null,"Sperre for bruk"]
["Neste nivå","Her angis neste nivå oppover i organisasjonshierarkiet slik det er i Personalportalen"]
["Kostnadsbærer","Her angis ansvars-/kostnadssted som skal knyttes til organisasjonsenheten"]
["Personer","Styrer om det er mulig å registere ansatte på organisasjonsenheten"]
[]
[]
[]
[]
[]
[]
["Merknad"]
[]
[]
["Excelarket legges ut i personalportalen som en link"]
["Excelarket sendes som vedlegg på \"kontakt oss\"-skjemaet til Kundeservice Sykehuspartner"]
[]
["Hfène må avklare hvem som har rettigheter til å melde dette. Liste på navn sendes sykehuspartner"]